[Event "1st Bangalore GM-Open-A 2024"]
[Site "Bangalore"]
[Date "2024.01.21"]
[Round "5.2"]
[White "Gupta, Abhijeet"]
[Black "Nitish Belurkar"]
[Result "1-0"]
[ECO "D32"]
[WhiteElo "2605"]
[BlackElo "2435"]
[Annotator "TA"]
[PlyCount "215"]
[EventDate "2024.01.20"]
[EventType "swiss"]
[EventCountry "IND"]
[SourceTitle "playchess.com"]
[Source "ChessBase"]
[SourceQuality "1"]
[TimeControl "5400+30"]

{[%evp 16,215,12,5,18,13,16,20,15,16,16,16,22,18,20,0,8,0,32,32,33,41,34,52,53,35,30,39,39,25,39,37,34,47,57,50,78,85,62,62,101,100,118,97,93,84,104,61,64,52,53,24,29,9,12,15,14,7,16,12,7,0,0,0,14,12,14,17,23,20,31,33,40,39,58,0,3,3,164,0,0,0,0,0,0,0,0,-10,-6,-8,-6,-7,0,0,0,0,0,0,0,0,0,-8,-8,-12,-12,-11,-15,-8,0,0,0,0,0,0,0,0,0,0,0,0,6,7,7,7,22,22,21,21,28,14,37,20,36,5,57,56,340,324,295,284,335,308,356,352,435,426,375,372,1167,1062,1011,1011,1307,1206,1120,1082,1293,1292,1982,1982,1993,1993,1989,1982,1982,1968,1993,1968,1968,1968,1993,1968,1968,1968,1968,1960,1960,1953,1931,1917,1877,1778,1764,1764,1750,1743,1743,1735,1728,1680,1651,1615,1589,1512,29967,1589,29978,29979,29978,29979,29979,29977]} 1. Nf3 {[%emt 0:00:23]} d5 {[%emt 0:00:16]} 2. c4 {[%emt 0:01:57]} e6 {[%emt 0:00:31]} 3. e3 {[%emt 0:00:17]} c5 {[%emt 0:00:27]} 4. cxd5 {[%emt 0:00:53]} exd5 {[%emt 0:00:06]} 5. d4 {[%emt 0:00:03]} Nf6 {[%emt 0:00:50]} 6. Nc3 {[%emt 0:01:52]} Nc6 {[%emt 0:00:35]} 7. Bb5 {[%emt 0:00:06]} cxd4 {[%emt 0:00:11]} 8. Nxd4 {[%emt 0:00:05]} Bd7 {[%emt 0:00:06]} 9. O-O {[%emt 0:00:44]} Bd6 {[%emt 0:00:06]} 10. Nf3 {[%emt 0:00:20]} Bg4 {[%emt 0:00:08]} 11. h3 {[%emt 0:00:21]} (11. Nxd5 $2 Nxd5 12. h3 Bxf3 13. Qxf3 O-O $19) 11... Bh5 {[%emt 0:00:09] The position is equal.} 12. Be2 {[%emt 0:00:29]} (12. Nxd5 $2 Nxd5 13. e4 (13. Qxd5 $2 Bh2+ {[%mdl 64] Discovered Attack} 14. Nxh2 Qxd5 $19) (13. g4 $2 Bg6 $19) 13... Nde7 $19) 12... O-O {[%emt 0:00:36]} 13. b3 {[%emt 0:01:36]} (13. Nxd5 $2 Nxd5 14. Qb3 Qd7 $19) 13... Rc8 {[%emt 0:12:31]} 14. Bb2 {[%emt 0:00:15]} (14. Nxd5 $2 Nxd5 15. Bb2 Re8 $19) 14... Bb8 {[%emt 0:00:06]} 15. Rc1 {[%emt 0:07:01]} (15. Nh4 $5 {[%cal Re2h5]} Qd6 16. g3 Bxe2 17. Nxe2 $11) 15... a6 {[%emt 0:03:48]} 16. Nh4 {[%emt 0:01:45]} Qd6 {[%emt 0:11:45][%csl Gb8][%cal Rd6h2]} 17. g3 $1 {[%emt 0:00:07]} Bg6 {[%emt 0:03:28]} 18. Nxg6 {[%emt 0:01:04]} hxg6 {[%emt 0:00:13]} 19. Bf3 {[%emt 0:00:39]} Rfd8 {[%emt 0:01:34]} 20. Bg2 {[%emt 0:00:54]} Qe6 {[%emt 0:04:33]} 21. Ne2 {[%emt 0:04:19]} Be5 {[%emt 0:03:01]} 22. Nf4 {[%emt 0:03:37]} Qe7 {[%emt 0:04:55]} 23. Bxe5 {[%emt 0:07:39]} (23. Nxd5 $2 Nxd5 24. Qe2 Bxb2 25. Qxb2 Rd6 $19) 23... Qxe5 {[%emt 0:00:59]} 24. Rc5 {[%emt 0:07:05][%cal Rf4d5]} Qd6 {[%emt 0:06:12]} 25. Qc1 {[%emt 0:00:31]} Ne7 {[%emt 0:00:50]} 26. Rxc8 {[%emt 0:00:06]} Rxc8 {[%emt 0:00:06]} 27. Qd2 {[%emt 0:00:06]} Rc5 {[%emt 0:06:20] [#]} 28. e4 $1 {[%emt 0:03:08][%mdl 512]} Qe5 {[%emt 0:10:03]} (28... Qc7 29. Nxd5) 29. exd5 {[%emt 0:04:30] d6 is the strong threat.} Nf5 {[%emt 0:03:30]} 30. Rd1 {[%emt 0:07:21] Hoping for Nd3.} Rc7 {[%emt 0:01:14]} 31. Re1 {[%emt 0:01:29]} Qc3 {[%emt 0:00:26]} 32. Qxc3 {[%emt 0:14:39]} Rxc3 {[%emt 0:01:55]} 33. g4 {[%emt 0:00:08]} Nd6 {[%emt 0:00:03]} 34. g5 {[%emt 0:00:06]} Nd7 {[%emt 0:01:17]} 35. Re7 {[%emt 0:05:08]} Nb6 {[%emt 0:04:02]} 36. Re3 {[%emt 0:00:53]} Rc1+ {[%emt 0:01:14]} 37. Kh2 {[%emt 0:02:06]} Kf8 {[%emt 0:00:20]} 38. Re2 {[%emt 0:00:52]} Rd1 {[%emt 0:00:48]} 39. Rc2 {[%emt 0:01:39]} Rd4 {[%emt 0:02:22]} 40. Ne2 {[%emt 0:00:41]} Rd3 {[%emt 0:00:19]} 41. Nc3 {[%emt 0:00:05]} Ke7 {[%emt 0:00:34]} 42. Ne4 {[%emt 0:05:46] next Nc5 is good for White.} Nxd5 {[%emt 0:04:08]} (42... Rxd5 43. Nxd6 Rxd6 44. Bxb7 $16) 43. Nc5 {[%emt 0:00:57]} Rd4 {[%emt 0:00:15]} 44. Re2+ {[%emt 0:00:06]} Kd8 {[%emt 0:02:37] [#]} 45. Re6 {[%emt 0:05:57]} Kc7 {[%emt 0:03:51]} ({Don't take} 45... fxe6 46. Nxe6+ Ke7 47. Nxd4 $16) 46. Re5 {[%emt 0:00:41]} Nb6 {[%emt 0:00:07]} (46... Nf4 $1 $11 {and Black has nothing to worry.}) 47. a4 $2 {[%emt 0:01:07]} (47. Re7+ $18 Kd8 48. Rxf7 {[%mdl 64] Remove Defender} (48. Nxb7+ $2 {loses.} Kxe7 49. Na5 Rd2 $19) 48... Nxf7 49. Ne6+ (49. Nxb7+ $2 {is the wrong capture.} Ke7 $19) 49... Kc8 50. Nxd4) 47... Nbc8 $11 {[%emt 0:03:41]} 48. Bf3 {[%emt 0:01:30]} a5 {[%emt 0:02:28]} 49. Re3 {[%emt 0:06:39]} b6 {[%emt 0:00:35]} 50. Na6+ {[%emt 0:00:24]} Kd8 {[%emt 0:00:01]} 51. Rc3 {[%emt 0:02:57]} Rd2 {[%emt 0:00:40]} 52. Kg2 {[%emt 0:00:12]} Nf5 {[%emt 0:01:07]} 53. Kf1 {[%emt 0:00:49]} Ncd6 {[%emt 0:01:39]} 54. Nb8 {[%emt 0:00:11]} Rb2 {[%emt 0:00:33]} 55. Nc6+ {[%emt 0:00:50]} Ke8 {[%emt 0:00:11]} 56. Rd3 {[%emt 0:02:41]} f6 {[%emt 0:01:11]} 57. Bd5 {[%emt 0:00:35]} Rc2 {[%emt 0:00:28]} 58. Rd1 {[%emt 0:00:33]} Kd7 {[%emt 0:00:33]} 59. Nd4 {[%emt 0:00:26]} Nxd4 {[%emt 0:00:06]} 60. Rxd4 {[%emt 0:00:02]} fxg5 {[%emt 0:00:58][%mdl 4096] Endgame KRB-KRN} 61. Rd3 {[%emt 0:00:11] Prevents Rc3} Rc5 {[%emt 0:00:47]} 62. Be4 {[%emt 0:00:40]} Ke7 {[%emt 0:00:03]} 63. Bxg6 {[%emt 0:00:05]} b5 {[%emt 0:00:02]} 64. Bh5 {[%emt 0:00:31]} bxa4 {[%emt 0:00:11]} 65. bxa4 {[%emt 0:00:05]} Rf5 {[%emt 0:00:18]} 66. Re3+ {[%emt 0:00:17]} Kf6 {[%emt 0:00:16]} 67. Bg4 {[%emt 0:00:04]} Re5 {[%emt 0:00:27]} 68. Rf3+ {[%emt 0:00:13]} Ke7 {[%emt 0:00:08]} 69. Rc3 {[%emt 0:00:14]} g6 {[%emt 0:01:28]} 70. Rc7+ {[%emt 0:00:23]} Kf6 {[%emt 0:00:02]} 71. Rc6 {[%emt 0:00:17]} Ke7 {[%emt 0:00:23]} 72. Ra6 {[%emt 0:00:11]} Rc5 {[%emt 0:00:04]} 73. Kg2 {[%emt 0:00:24]} Re5 {[%emt 0:00:02]} 74. Kf3 {[%emt 0:00:50]} Rc5 {[%emt 0:01:35]} (74... Nf5 $11) 75. Ke3 $14 {[%emt 0:00:08]} Re5+ $2 {[%emt 0:00:05][%mdl 8192] [#] White now steadily converts the win.} (75... Rd5 $14) 76. Kd4 $1 $18 {[%emt 0:00:30]} Re1 {[%emt 0:00:51]} 77. Rxa5 {[%emt 0:00:16]} Rf1 {[%emt 0:00:15]} 78. Rxg5 {[%emt 0:01:02]} Rxf2 {[%emt 0:00:07]} 79. Rxg6 {[%emt 0:00:08] aiming for Re6+.} Rd2+ {[%emt 0:00:21]} 80. Kc3 {[%emt 0:00:46]} Ne4+ {[%emt 0:00:06]} 81. Kb3 {[%emt 0:00:05] Re6+ would be deadly.} Kf7 $2 {[%emt 0:01:06]} (81... Nc5+ 82. Kb4 Rc2) 82. Rc6 {[%emt 0:00:05]} Rd3+ {[%emt 0:01:15]} 83. Kb4 {[%emt 0:00:05]} Rd2 {[%emt 0:00:19]} 84. a5 {[%emt 0:00:54]} Rb2+ {[%emt 0:00:04]} 85. Ka3 {[%emt 0:00:25]} Rb1 {[%emt 0:01:10]} 86. Be6+ {[%emt 0:01:04]} Ke7 {[%emt 0:00:04]} 87. Bf5 {[%emt 0:01:54]} Rb5 {[%emt 0:00:04]} 88. Bxe4 {[%emt 0:00:07] Intending a6 and mate.} Rxa5+ {[%emt 0:00:02] KRB-KR} 89. Kb2 {[%emt 0:00:30]} Rh5 {[%emt 0:00:05]} 90. Rc3 {[%emt 0:00:14]} Kf6 {[%emt 0:00:01]} 91. Bg2 {[%emt 0:00:21]} Rf5 {[%emt 0:00:06]} 92. Bf3 {[%emt 0:00:19]} Kg5 {[%emt 0:00:08]} 93. Bg4 {[%emt 0:00:03]} Rd5 {[%emt 0:00:04]} 94. Kb3 {[%emt 0:00:10]} Kh4 {[%emt 0:00:12]} 95. Kc4 {[%emt 0:00:19]} Rd6 {[%emt 0:00:07]} 96. Kc5 {[%emt 0:00:05]} Rd8 {[%emt 0:00:02]} 97. Ra3 {[%emt 0:00:08]} Kg5 {[%emt 0:00:06]} 98. Ra7 {[%emt 0:00:06]} Kh4 {[%emt 0:00:07]} 99. Rh7+ {[%emt 0:00:11]} Kg5 {[%emt 0:00:04]} 100. Bd7 {[%emt 0:00:31]} Rf8 {[%emt 0:00:12]} 101. Kd6 {[%emt 0:00:13]} Kf6 {[%emt 0:01:16]} 102. Rh4 {[%emt 0:00:11]} Ra8 {[%emt 0:00:15]} 103. Rf4+ {[%emt 0:00:18]} Kg5 {[%emt 0:00:02]} 104. Rg4+ {[%emt 0:00:43]} Kh5 {[%emt 0:00:05]} 105. Ke7 {[%emt 0:00:21]} (105. Bf5 $142 Ra3 106. Rd4 Re3 107. h4 Re1 108. Be6 Kg6 109. Rf4 Kh5 110. Bd5) 105... Ra3 {[%emt 0:00:20]} 106. Kf6 {[%emt 0:00:50] White mates.} Rf3+ {[%emt 0:01:09]} 107. Bf5 {[%emt 0:00:30]} Rf1 {[%emt 0:00:11]} 108. Rg8 {[%emt 0:00:50] Weighted Error Value: White=0.08 (flawless) /Black=0.10 (very precise)} 1-0

[Event "1st Bangalore GM-Open-A 2024"]
[Site "Bangalore"]
[Date "2024.01.21"]
[Round "5.3"]
[White "Ilamparthi A R"]
[Black "Sethuraman, S.P."]
[Result "1/2-1/2"]
[ECO "B88"]
[WhiteElo "2426"]
[BlackElo "2594"]
[Annotator "TA"]
[PlyCount "117"]
[EventDate "2024.01.20"]
[EventType "swiss"]
[EventCountry "IND"]
[SourceTitle "playchess.com"]
[Source "ChessBase"]
[SourceQuality "1"]
[TimeControl "5400+30"]

{[%evp 19,117,0,9,0,0,8,27,25,17,18,30,0,12,0,0,0,0,0,0,0,33,31,20,14,37,47,86,28,54,52,42,0,29,-31,0,-32,-25,-29,0,0,0,-32,0,-81,-81,-87,-57,-64,-59,-72,-61,-92,-92,-81,-92,-83,-93,-85,-90,-86,-93,-93,-93,-93,-93,-93,-83,-86,-81,-87,-87,-90,-76,-80,0,-94,-96,-96,-50,-50,-50,-50,-50,-50,-8,-235,-8,-8,0,0,0,0,0,0,0,0,0,0,0,0]} 1. e4 {[%emt 0:03:58]} c5 {[%emt 0:00:03]} 2. Nf3 {[%emt 0:00:07]} d6 {[%emt 0:00:06]} 3. d4 {[%emt 0:00:04]} cxd4 {[%emt 0:00:06]} 4. Nxd4 {[%emt 0:00:04]} Nf6 {[%emt 0:00:05]} 5. Nc3 {[%emt 0:00:07]} a6 {[%emt 0:00:04]} 6. Bc4 {[%emt 0:00:07]} e6 {[%emt 0:01:51]} 7. a4 {[%emt 0:00:07]} Be7 {[%emt 0:02:10]} 8. O-O {[%emt 0:00:33]} Nc6 {[%emt 0:04:33]} 9. Be3 {[%emt 0:02:21]} O-O {[%emt 0:02:29]} 10. Qe2 {[%emt 0:02:08] 10.Kh1 is vanishing.} Bd7 {[%emt 0:09:36]} 11. Nxc6 {[%emt 0:09:02] B88: Sicilian: Sozin Attack.} Bxc6 {[%emt 0:00:25]} 12. a5 {[%emt 0:02:07] [#]} Qb8 $146 {[%emt 0:10:11]} ({Don't do} 12... Bxe4 13. Nxe4 (13. Bb6 Qe8 $16) 13... Nxe4 14. Bb6 $16) ({Predecessor:} 12... Nxe4 13. Nxe4 d5 14. Bb6 Qc8 15. Bd3 dxe4 16. Bxe4 Bb5 17. Bd3 Bxd3 18. Qxd3 Bc5 19. Bxc5 Qxc5 20. Rfd1 Qc7 21. Qe4 Rad8 22. g3 g6 23. c4 Rd6 24. Rxd6 Qxd6 25. Qxb7 Rb8 {½-½ Aravindh,C (2646)-Ter Sahakyan,S (2643) Sant Boi de Llobregat op 4th 2023 (7)}) 13. Bd4 {[%emt 0:09:23] White has an edge.} Nd7 {[%emt 0:00:47]} 14. Rfd1 {[%emt 0:05:24]} Bf6 {[%emt 0:00:54]} 15. Qe3 {[%emt 0:05:46]} Qc7 {[%emt 0:01:41]} 16. Bb3 {[%emt 0:02:57]} Rac8 {[%emt 0:04:38]} 17. Bxf6 {[%emt 0:06:30]} Nxf6 {[%emt 0:00:18]} 18. Qd4 {[%emt 0:00:06]} Rfd8 {[%emt 0:00:21]} 19. Qb4 {[%emt 0:01:00]} Be8 {[%emt 0:19:00]} 20. h3 {[%emt 0:07:15]} Bc6 {[%emt 0:08:30]} 21. Rd3 {[%emt 0:03:59]} Qe7 {[%emt 0:02:12]} 22. Rad1 {[%emt 0:04:51]} Ne8 {[%emt 0:00:07]} 23. Ba4 {[%emt 0:09:30] White is much more active. The black rooks are badly placed.} (23. Na4 $16) 23... Qc7 {[%emt 0:04:04]} 24. Bxc6 {[%emt 0:03:41]} Qxc6 {[%emt 0:02:35]} 25. e5 {[%emt 0:01:45][%cal Re5d6]} d5 {[%emt 0:00:39] Black is weak on the dark squares} 26. Rf3 {[%emt 0:01:27]} (26. R1d2 $11) 26... Qc7 {[%emt 0:06:51]} 27. Qf4 {[%emt 0:03:05]} Qe7 {[%emt 0:00:42]} 28. Rd4 {[%emt 0:04:52] Dodges Rc4} Rc5 {[%emt 0:02:15]} 29. b4 {[%emt 0:04:23]} Rc6 {[%emt 0:00:51]} 30. Qg3 {[%emt 0:00:52]} Qc7 {[%emt 0:03:01]} 31. Rdf4 {[%emt 0:00:50]} (31. Na4 $1 $11 {remains equal.}) 31... Rd7 $17 {[%emt 0:00:13]} 32. Rg4 {[%emt 0:02:53]} Rc4 {[%emt 0:01:24]} 33. Na4 {[%emt 0:02:46]} Rxc2 {[%emt 0:08:23]} 34. Nc5 {[%emt 0:01:34][%cal Oc5e6]} Re7 {[%emt 0:01:00]} 35. Rc3 {[%emt 0:01:10] [#]} Rxc3 {[%emt 0:00:29]} 36. Qxc3 {[%emt 0:00:01]} b6 {[%emt 0:00:35]} 37. axb6 {[%emt 0:00:24]} Qxb6 {[%emt 0:00:03]} 38. Qa3 {[%emt 0:00:07]} Ra7 {[%emt 0:01:11]} 39. Rg3 {[%emt 0:02:03]} Qb5 {[%emt 0:00:57]} 40. Qa5 {[%emt 0:00:33]} Qxa5 {[%emt 0:01:04]} 41. bxa5 {[%emt 0:00:01][%mdl 4096] Endgame [#] KRN-KRN} Rc7 $1 {[%emt 0:00:06]} 42. Nxa6 {[%emt 0:00:04]} Ra7 {[%emt 0:00:02]} 43. Nc5 {[%emt 0:00:26]} Rxa5 {[%emt 0:00:06]} 44. Nd7 {[%emt 0:00:03]} h6 {[%emt 0:02:08]} 45. h4 {[%emt 0:01:19]} Kh7 {[%emt 0:02:53]} 46. Rf3 {[%emt 0:00:27]} Kg8 {[%emt 0:00:03]} 47. Rg3 $1 {[%emt 0:00:01]} Ra1+ {[%emt 0:00:43]} 48. Kh2 {[%emt 0:00:02]} Ra7 {[%emt 0:00:37]} (48... h5 $17 49. Nf6+ Nxf6 50. exf6 g6) 49. Nf6+ $1 $15 {[%emt 0:01:14]} Nxf6 {[%emt 0:00:04]} 50. exf6 {[%emt 0:00:03] KR-KR} g6 {[%emt 0:00:03] White must now prevent ...Ra4.} 51. Rb3 {[%emt 0:00:14]} Ra4 {[%emt 0:01:37]} 52. Rb8+ {[%emt 0:00:28]} Kh7 {[%emt 0:00:10]} 53. g3 {[%emt 0:00:30] The position is equal.} Ra7 {[%emt 0:01:19]} 54. Rd8 {[%emt 0:00:05]} g5 {[%emt 0:00:32] aiming for ...Kg6.} 55. h5 {[%emt 0:00:05]} g4 {[%emt 0:00:03][%cal Od5d4]} 56. Kg2 {[%emt 0:00:12]} Rc7 {[%emt 0:00:18]} 57. Kf1 {[%emt 0:01:12]} Rc1+ {[%emt 0:00:12]} 58. Kg2 $1 {[%emt 0:00:12]} Rc7 {[%emt 0:00:05]} 59. Kf1 {[%emt 0:00:03] Weighted Error Value: White=0.09 (flawless) /Black=0.11 (very precise)} 1/2-1/2

[Event "1st Bangalore GM-Open-A 2024"]
[Site "Bangalore"]
[Date "2024.01.21"]
[Round "5.4"]
[White "Aronyak Ghosh"]
[Black "Deepan Chakkravarthy J."]
[Result "1/2-1/2"]
[ECO "A20"]
[WhiteElo "2541"]
[BlackElo "2422"]
[Annotator "TA"]
[PlyCount "67"]
[EventDate "2024.01.20"]
[EventType "swiss"]
[EventCountry "IND"]
[SourceTitle "playchess.com"]
[Source "ChessBase"]
[SourceQuality "1"]
[TimeControl "5400+30"]

{[%evp 9,67,13,18,17,16,0,18,12,19,29,25,27,16,0,33,30,27,0,0,-15,-12,-19,0,0,0,-20,0,-25,0,-56,-69,-63,-16,-23,-23,-27,-27,-27,-25,-22,-29,-22,-22,-22,-22,-22,-22,-27,-28,-44,-31,-31,-47,-31,0,-37,0,0,0,-8]} 1. c4 {[%emt 0:00:35]} e5 {[%emt 0:02:22]} 2. g3 {[%emt 0:00:49]} g6 {[%emt 0:00:05]} 3. d4 {[%emt 0:06:14]} Nc6 {[%emt 0:00:08]} 4. dxe5 {[%emt 0:02:09]} Nxe5 {[%emt 0:00:04]} 5. Nf3 {[%emt 0:00:04]} Nxf3+ {[%emt 0:00:23]} (5... Nxc4 $2 6. Qd4 Nf6 7. Qxc4 $18) 6. exf3 {[%emt 0:00:01]} Bg7 {[%emt 0:00:07]} 7. Nc3 {[%emt 0:01:27]} d6 {[%emt 0:05:21]} 8. Bg2 {[%emt 0:12:19]} Nf6 {[%emt 0:01:57]} 9. O-O {[%emt 0:05:14]} O-O {[%emt 0:01:14]} 10. Qb3 {[%emt 0:12:59]} Be6 {[%emt 0:09:49]} 11. Be3 {[%emt 0:03:47][%cal Oa1d1]} b6 {[%emt 0:10:47]} (11... c6 $5 {[%cal Rb7b5]}) 12. f4 {[%emt 0:11:27][%cal Of1e1]} Rb8 {[%emt 0:00:59]} 13. Qa4 {[%emt 0:02:32]} (13. Nb5 $5 {[%cal Rb5a7]}) 13... Nd7 {[%emt 0:01:33]} 14. Nb5 {[%emt 0:03:25]} Bxb2 {[%emt 0:00:03]} 15. Rab1 {[%emt 0:00:04]} Bf6 {[%emt 0:02:03]} 16. Qxa7 {[%emt 0:05:17]} Bxc4 {[%emt 0:00:15]} 17. Nxc7 {[%emt 0:03:22]} Bxf1 {[%emt 0:01:12]} 18. Kxf1 {[%emt 0:00:04]} Kh8 {[%emt 0:03:38]} 19. Nd5 {[%emt 0:05:27]} (19. Bf3 $11) 19... Ra8 $15 {[%emt 0:03:56][%mdl 64] [#] Deflection} 20. Qb7 {[%emt 0:00:12] aiming for Nxf6.} Nc5 {[%emt 0:01:27]} (20... Rxa2 $15 21. Qc6 Bg7) 21. Qxb6 $11 {[%emt 0:01:22]} Bg7 {[%emt 0:00:05]} ({Resist} 21... Rxa2 22. Bxc5 dxc5 23. Qxf6+ (23. Nxf6 $2 {is the wrong capture.} Ra1 $19) 23... Qxf6 24. Nxf6 $16) 22. Qxd8 {[%emt 0:04:50]} Rfxd8 {[%emt 0:01:41]} 23. Nb4 {[%emt 0:00:03]} Rab8 {[%emt 0:01:59]} 24. a3 {[%emt 0:02:35][%cal Ba2a3,Ba3b4][%mdl 32]} Bc3 {[%emt 0:00:07]} 25. Rd1 {[%emt 0:01:37] [#] Black must now prevent Nc6.} Bxb4 {[%emt 0:00:31]} 26. axb4 {[%emt 0:00:05]} Na6 {[%emt 0:00:03]} 27. Bd4+ {[%emt 0:00:58]} Kg8 {[%emt 0:00:15]} 28. Bf6 {[%emt 0:01:12] Against Rxb4. Strongly threatening b5. This pair of bishops is nice.} Rdc8 {[%emt 0:08:17] Prevents b5.} 29. Rxd6 {[%emt 0:00:41]} Rc1+ {[%emt 0:00:11]} 30. Ke2 {[%emt 0:00:02]} Nxb4 {[%emt 0:00:05]} 31. Be4 {[%emt 0:00:26]} Rc4 {[%emt 0:03:34]} 32. Kf3 {[%emt 0:00:38]} Rbc8 {[%emt 0:01:39]} (32... Re8 $5 {[%cal Rc4e4]} 33. Bb7 Rc7 $11) 33. h4 {[%emt 0:00:46]} R4c5 {[%emt 0:00:54]} 34. Rd7 {[%emt 0:00:29] Weighted Error Value: White=0.10 (very precise) /Black=0.08 (flawless)} 1/2-1/2

[Event "1st Bangalore GM-Open-A 2024"]
[Site "Bangalore"]
[Date "2024.01.21"]
[Round "5.5"]
[White "Iniyan, Pa"]
[Black "Audi Ameya"]
[Result "1/2-1/2"]
[ECO "D97"]
[WhiteElo "2515"]
[BlackElo "2385"]
[Annotator "TA"]
[PlyCount "63"]
[EventDate "2024.01.20"]
[EventType "swiss"]
[EventCountry "IND"]
[SourceTitle "playchess.com"]
[Source "ChessBase"]
[SourceQuality "1"]
[TimeControl "5400+30"]

{[%evp 14,63,0,-96,-94,-84,-89,-80,-18,-20,-17,-95,-91,-106,-113,-220,-159,-338,-300,-502,-503,-503,-492,-409,-84,-250,-88,-80,-87,-83,-72,-67,-70,-65,-80,-77,-79,-87,0,0,0,0,0,0,0,0,0,0,0,0,0,-2]} 1. d4 {[%emt 0:06:19]} Nf6 {[%emt 0:00:02]} 2. c4 {[%emt 0:00:12]} g6 {[%emt 0:00:05]} 3. Nc3 {[%emt 0:00:11]} d5 {[%emt 0:00:04]} 4. Nf3 {[%emt 0:04:06]} Bg7 {[%emt 0:00:04]} 5. Qb3 {[%emt 0:00:14]} dxc4 {[%emt 0:00:55]} 6. Qxc4 {[%emt 0:00:10]} O-O {[%emt 0:00:05]} 7. e4 {[%emt 0:00:31]} a6 {[%emt 0:02:56]} 8. a4 {[%emt 0:07:33] [#]} (8. Qa4 $11 {keeps the balance.}) 8... b5 $1 $17 {[%emt 0:02:16]} 9. Qb3 {[%emt 0:02:52] [#]} (9. axb5 $2 axb5 10. Rxa8 bxc4 $19) (9. Qc5 Bb7) 9... c5 $1 {[%emt 0:00:49]} 10. e5 {[%emt 0:07:10]} (10. dxc5 $6 Be6 11. Qa3 b4 12. Qxb4 Nc6 $11) 10... cxd4 {[%emt 0:04:56]} (10... Ng4 $17 11. dxc5 Be6) 11. exf6 $11 {[%emt 0:07:22]} exf6 {[%emt 0:00:03] White must now prevent ...Be6.} 12. Ne2 {[%emt 0:02:01] [#]} (12. Nxd4 $1 $11 Qxd4 13. axb5) 12... Re8 $1 $17 {[%emt 0:14:57]} 13. axb5 {[%emt 0:00:29]} Bb7 {[%emt 0:24:20]} (13... d3 14. Be3 dxe2 15. Bxe2 $14) 14. Kd1 {[%emt 0:09:42]} (14. h4 $17) 14... Nd7 $19 {[%emt 0:02:14]} 15. Nf4 $2 {[%emt 0:13:18]} (15. Nexd4 Ne5 16. Nxe5 (16. bxa6 $2 Nxf3 {[%mdl 64] Pin} 17. Be3 Nxd4 $19) 16... fxe5 17. bxa6 Qxd4+ 18. Ke1 Bd5 $17) (15. Nfxd4 Nc5 16. Qc2 Rxe2 17. Bxe2 (17. Qxc5 $2 Re4 $19) 17... f5 18. bxa6 (18. Qxc5 $2 Bxd4 $19) 18... Bxd4 $11) (15. bxa6 $17 Nc5 16. Qc4 (16. axb7 $2 Rxa1 17. b8=Q Qxb8 $19) 16... Bxa6 17. Rxa6 (17. Qxc5 $2 Bxe2+ {[%mdl 64] Discovered Attack} 18. Bxe2 Rxa1 $19) 17... Nxa6 18. Nf4 (18. Nfxd4 $2 f5 $19) (18. Qxd4 $2 Nb4 $19)) 15... Nc5 {[%emt 0:00:08]} 16. Qc2 {[%emt 0:00:07]} (16. Qb4 Ne4 17. Nd3 (17. Qxd4 $2 Nxf2+ 18. Kc2 Qc8+ 19. Kb3 Nxh1 $19)) 16... Rc8 {[%emt 0:02:13]} 17. bxa6 {[%emt 0:02:52]} Be4 {[%emt 0:02:49]} 18. Qc4 {[%emt 0:00:52]} Ne6 $2 {[%emt 0:08:01]} (18... Bh6 $19 {has better winning chances.} 19. a7 (19. Qxd4 Bxf3+ 20. Kc2 Qxd4 21. Bd2 Na4+ 22. Kb3 Qxb2+ 23. Kxa4 Bc6+ 24. Ka5 Re5+) (19. Nxd4 $2 Nb3 $19 {[%mdl 64] Pin}) 19... Bxf4 20. Bxf4 Ne6) 19. Qa4 $2 {[%emt 0:05:46] [#]} ({Don't go for} 19. Nxe6 $2 Rxc4 20. Bxc4 (20. Nxd8 Bc2+ 21. Kd2 Bh6+) 20... fxe6 $19) (19. Qb3 $17 {was forced.} Bc2+ 20. Qxc2 Rxc2 21. Kxc2 Qc7+ 22. Kb1 Nxf4 23. Bxf4 Qxf4 24. Bd3) 19... Bc2+ $2 {[%emt 0:05:29]} (19... Nxf4 $1 $19 {is more deadly.} 20. Bxf4 Qd5) 20. Qxc2 $17 {[%emt 0:01:34]} Rxc2 {[%emt 0:00:03]} 21. Kxc2 {[%emt 0:00:09] Nxe6 would be deadly.} Qc7+ {[%emt 0:00:10]} 22. Kb1 {[%emt 0:09:18] Strongly threatening Nxe6.} Nxf4 {[%emt 0:00:04]} 23. Bxf4 {[%emt 0:00:26]} Qxf4 {[%emt 0:00:04]} 24. Bd3 {[%emt 0:00:09] Prevents Qf5.} Bf8 {[%emt 0:05:47]} 25. Rc1 {[%emt 0:06:08]} f5 {[%emt 0:01:24]} (25... Qg4 $17 26. Rg1 Rb8) 26. Ra4 $36 {[%emt 0:00:37][%mdl 2048] aiming for a7. White fights for an advantage. The position is equal.} Qg4 {[%emt 0:03:36]} 27. Bb5 {[%emt 0:07:52]} Ra8 {[%emt 0:06:54]} 28. Nxd4 {[%emt 0:00:24]} (28. Bc6 $5 Ra7 $8 29. Nxd4 $11 (29. Rxd4 Qxg2 30. Bb7 Qxf2 $17)) 28... Qe4+ {[%emt 0:01:01]} (28... Qxg2 $2 29. Bc6 $18) 29. Ka2 {[%emt 0:01:33] Rcc4 is the strong threat.} Bg7 {[%emt 0:01:34]} (29... Qxg2 $2 30. Bc6 $18) 30. Bc6 {[%emt 0:03:05] Dancing on a razor blade.} Rxa6 $1 {[%emt 0:00:09][%mdl 64] Deflection} 31. Bxe4 {[%emt 0:01:32]} Rxa4+ {[%emt 0:00:02]} 32. Kb3 {[%emt 0:00:07] Black had all chances to win. An exciting game.   Weighted Error Value: White=0.52/Black=0.24 (precise)} 1/2-1/2